Cogmind - Beta 15 @@@ ROGUE MODE // 2025.05.24 @ 18:20:09 Player: Epsilon 11 Result: Destroyed by Autobeam Turret with Autobeam Performance ------------- Evolutions (0) 0 Regions Visited (2) 400 Robots Destroyed (41) 205 Value Destroyed (816) 816 Prototype IDs (13) 260 Alien Tech Used (0) 0 Bonus (0) 0 TOTAL SCORE: 1681 Bonus ------- None Cogmind --------- Core Integrity 0/250 Matter 220/300 Energy 315/315 System Corruption 0% Temperature Cool (7) Movement Rolling (205) Ox7 Location -10/Subcaves Parts ------- > --- POWER (1) -------- Neutrino Core > --- PROPULSION (2) --- Compact Wheel Compact Wheel > --- UTILITY (2) ------ Humpback > --- WEAPON (2) ------- Subdweller Beam Cannon Subdweller Shrapnel Launcher > --- INVENTORY (35) --- Myomer Leg Myomer Leg Flightbrick Phase Shifter Scrap Shield Medium Laser Beam Cannon Subdweller Beam Cannon Bore Cannon Makeshift Axe Shrapnel Trap Shrapnel Trap Piercing Trap Piercing Trap SUBCON Basin (Full) Peak State ------------ > --- POWER ------------ Neutrino Core > --- PROPULSION ------- Compact Wheel Compact Wheel > --- UTILITY ---------- Humpback > --- WEAPON ----------- Bore Cannon Subdweller Shrapnel Launcher > --- INVENTORY -------- Myomer Leg Myomer Leg Flightbrick Phase Shifter Scrap Shield Medium Laser Beam Cannon Subdweller Beam Cannon Subdweller Beam Cannon Makeshift Axe Shrapnel Trap Shrapnel Trap Piercing Trap Piercing Trap SUBCON Basin [Rating: 42] Favorites ----------- Power Neutrino Core Engine Ion Engine Power Core Neutrino Core Propulsion Subdweller Monowheel Leg Myomer Leg Wheel Subdweller Monowheel Utility Humpback Device Improved Terrain Scanner Storage Humpback Protection Scrap Shield Weapon Beam Cannon Energy Gun Medium Laser Energy Cannon Beam Cannon Ballistic Gun Assault Rifle Ballistic Cannon Bore Cannon Launcher Subdweller Shrapnel Launcher Build | -11 -10 -10 ------- Run | Yrd Mat Sub Slots Evolved . | . . . Power . | . . . Propulsion . | . . . Utility . | . . . Weapon . | . . . Parts Attached 28 | 6 8 14 Power 4 | 1 2 1 Engine 3 | 1 2 . Core 1 | . . 1 Reactor . | . . . Propulsion 10 | 2 2 6 Treads . | . . . Leg 2 | . . 2 Wheel 8 | 2 2 4 Hover . | . . . Flight . | . . . Utility 7 | 1 2 4 Device 1 | . . 1 Storage 4 | 1 2 1 Processor . | . . . Hackware . | . . . Protection 2 | . . 2 Artifact . | . . . Weapon 7 | 2 2 3 Energy Gun 1 | 1 . . Energy Cannon 2 | . 1 1 Ballistic Gun 1 | 1 . . Ballistic Cannon 2 | . 1 1 Launcher 1 | . . 1 Special Weapon . | . . . Impact Weapon . | . . . Slashing Weapon . | . . . Piercing Weapon . | . . . Special Melee Weapon . | . . . Unidentified Prototypes . | . . . Parts Lost 5 | . 3 2 Power 1 | . 1 . Propulsion 2 | . 2 . Utility 2 | . . 2 Weapon . | . . . Highest Loss Streak 2 | . 2 1 To Critical Strikes . | . . . Average Backups 5 | 2 7 5 Power . | . . . Propulsion 1 | 1 2 1 Utility 1 | . 2 1 Weapon 1 | . 1 2 Tool/Special . | . . . Unused Backups 10 | . . 10 Power . | . . . Propulsion 3 | . . 3 Utility 5 | . . 5 Weapon 2 | . . 2 Tool/Special . | . . . Average Slot Usage (%) 85 | . 89 83 Engine 3 | . 14 1 Core 10 | . . 12 Leg 5 | . . 7 Wheel 21 | . 27 19 Storage 10 | . 18 8 Protection 4 | . . 5 Energy Gun 1 | . 7 . Energy Cannon 12 | . 6 14 Ballistic Gun 1 | . 7 . Ballistic Cannon 12 | . 6 13 Peak Build Rating 42 | 6 8 42 Average Rating 24 | 5 6 29 On Entrance 4 | . 6 6 Naked Turns . | . . . Heaviest Build 230 | 14 131 230 Greatest Support 50 | 32 32 50 Greatest Overweight (x) 75 | . 5 75 Average Overweight (x) 3 | . 2 3 Largest Inventory Capacity 35 | 8 25 35 Average Capacity 22 | 7 22 22 Most Carried 33 | 5 9 33 Average Carried 12 | 2 7 13 Final Capacity 35 | 8 25 35 Final Carried 33 | 5 7 33 Class Distribution -------------------- 45% | Hauler-Mutant 30% | Mutant 13% | Scavenger-Mutant 10% | Subdweller-Mutant Dominant Class ---------------- Mutant | -10/Materials Hauler-Mutant | -10/Subcaves Resources | -11 -10 -10 ----------- Run | Yrd Mat Sub Matter Collected 1282 | 262 216 804 Remotely . | . . . Salvage Created 829 | 11 428 390 Parts 69 | 3 32 34 Haulers Intercepted 1 | . 1 . Recyclers Shooed 1 | . 1 . Parts Field Recycled . | . . . Retrieved Matter . | . . . Parts Self-Destructed 9 | . . 9 Prevented . | . . . Kills | -11 -10 -10 ------- Run | Yrd Mat Sub Combat Hostiles Destroyed 30 | . 14 16 Guns 9 | . 9 . Cannons 15 | . 3 12 AOE 5 | . 1 4 Classes Destroyed 9 | 1 7 1 Worker 3 | . 3 . Builder 1 | . 1 . Tunneler 2 | 1 1 . Hauler 1 | . 1 . Operator 1 | . 1 . Watcher 3 | . 3 . Swarmer 16 | . 12 4 Grunt 2 | . 2 . Subdweller 12 | . . 12 Best Kill Streak 6 | 1 6 4 Combat Bots Only 5 | . 5 4 Max Kills in Single Turn 4 | 1 4 2 Gunslinging . | . . . Exploded 2 | . 1 2 Melee . | . . . Uniques/NPCs Destroyed . | . . . Combat | -11 -10 -10 -------- Run | Yrd Mat Sub Hostile Shots Fired 127 | . 66 61 Missed 35 | . 17 18 Hits 92 | . 49 43 Projectile 92 | . 49 43 AOE 5 | . . 5 Critical Strikes 1 | . . 1 Damage Taken 1586 | . 482 1104 Core 256 | . 101 155 Absorbed by Shields . | . . . Core Remaining (%) 100 | 100 . . Volleys Fired 147 | 1 46 100 Largest 2 | 2 2 2 Hottest 108 | 70 90 108 Shots Fired 236 | 2 92 142 Gun 70 | 2 68 . Cannon 163 | . 24 139 Launcher 3 | . . 3 Special . | . . . Kinetic 147 | 1 46 100 Thermal 89 | 1 46 42 Explosive . | . . . Electromagnetic . | . . . Robot Hit Streak 11 | 1 7 11 Robot Miss Streak 6 | 1 6 2 Penetration Max . | . . . Secondary Targets . | . . . Shots Hit Robots 106 | 1 41 64 Core Hits 45 | 1 23 21 Critical Kills 4 | . 1 3 Critical Parts Destroyed . | . . . Critical Strikes 13 | . 5 8 Burn 3 | . 3 . Meltdown 1 | . 1 . Destroy 8 | . . 8 Blast 1 | . 1 . Melee Attacks . | . . . Impact . | . . . Slashing . | . . . Piercing . | . . . Sneak Attacks . | . . . Combat Hostiles . | . . . Follow-up Attacks . | . . . Damage Inflicted 2375 | 13 1005 1357 Guns 402 | 13 389 . Cannons 1350 | . 253 1097 Explosions 623 | . 363 260 Melee . | . . . Ramming . | . . . Kinetic 1093 | 13 304 776 Thermal 1282 | . 701 581 Explosive . | . . . Electromagnetic . | . . . Impact . | . . . Slashing . | . . . Piercing . | . . . Highest Corruption . | . . . Average Corruption . | . . . Corruption Purged . | . . . Corruption Blocked . | . . . Overload Shots . | . . . Overflow Damage 41 | . 41 . Projectiles . | . . . Explosions 41 | . 41 . Melee . | . . . Knockbacks 4 | . . 4 Impact . | . . . Kinetic 4 | . . 4 Secondary . | . . . Self-Inflicted Damage 65 | . 65 . Shots 1 | . 1 . Rammed . | . . . Targets Rammed . | . . . Kicked . | . . . Crushed . | . . . Highest Temperature 359 | 9 192 359 Average Temperature 51 | 6 37 109 Received Heat Transfer 481 | . 48 433 Siege Activations . | . . . Martial Activations . | . . . Shielding Activations . | . . . Robots Disrupted . | . . . Combat Hostiles . | . . . Robots Corrupted . | . . . Combat Hostiles . | . . . Parts Fried . | . . . Impact Corruptions . | . . . Robots Melted 1 | . 1 . Combat Hostiles 1 | . 1 . Parts Melted 2 | . 2 . Heat Transferred 2581 | . 1360 1221 Parts Sabotaged . | . . . Parts Stolen . | . . . Parts Stripped . | . . . Power Chain Reactions . | . . . Alert | -11 -10 -10 ------- Run | Yrd Mat Sub Maximum Alert Level . | . . . Low Security (%) 100 | 100 100 . Level 1 . | . . . Level 2 . | . . . Level 3 . | . . . Level 4 . | . . . Level 5 . | . . . High Security . | . . . Max Security . | . . . Peak Influence 190 | 5 190 . Initial . | . . . Average 98 | 1 102 . Influence Increases 647 | 5 547 95 Destroy 0b10 Robot/C 360 | . 280 80 Destroy 0b10 Robot/NC 55 | 5 50 . Destroy Leader 48 | . 48 . Successful Hack 21 | . 21 . Disable Machine 30 | . 30 . Destroy Structure 28 | . 28 . Lose Combat Pursuer 105 | . 90 15 Influence Decreases 552 | 5 442 105 Entered New Map 51 | . . 51 Time Decay 471 | 5 412 54 Lost Part 30 | . 30 . Squads Dispatched 2 | . 2 . Investigation 2 | . 2 . Extermination . | . . . Reinforcement . | . . . Assault . | . . . Garrison . | . . . Intercept . | . . . Searches Triggered . | . . . Construction Impeded . | . . . Haulers Reinforced . | . . . Active Scanning Responses . | . . . Cargo Convoy Interrupts . | . . . Stealth | -11 -10 -10 --------- Run | Yrd Mat Sub Distress Signals 1 | . 1 . Communications Jammed . | . . . Distress Signals . | . . . Times Spotted 42 | . 27 15 Peak Tracking Total 7 | . 7 4 Tactical Retreats 3 | . 2 1 Traps | -11 -10 -10 ------- Run | Yrd Mat Sub Traps Triggered 2 | . 2 . Indirectly . | . . . Trap Hack Attempts . | . . . Triggered . | . . . Disarmed . | . . . Reprogrammed . | . . . Reused . | . . . Traps Extracted . | . . . Installed . | . . . Triggered . | . . . Most Traps Carried 4 | . . 4 Machines | -11 -10 -10 ---------- Run | Yrd Mat Sub Machines Disabled 8 | . 2 6 Max in Single Turn 4 | . 2 4 Machines Repaired . | . . . Machines Dismantled . | . . . Machines Sabotaged . | . . . Overloaded Fab Kills . | . . . Hacking | -11 -10 -10 --------- Run | Yrd Mat Sub Machines Accessed 12 | . 8 4 Terminals 7 | . 7 . Fabricators . | . . . Repair Stations . | . . . Recycling Units 1 | . 1 . Scanalyzers . | . . . Garrison Access . | . . . Total Hacks 34 | . 28 6 Successful 20 | . 14 6 Failed 14 | . 14 . Catastrophic 3 | . 3 . Database Lockouts . | . . . Manual 22 | . 22 . Terminals 26 | . 26 . Fabricators . | . . . Repair Stations . | . . . Recycling Units 2 | . 2 . Scanalyzers . | . . . Garrison Access . | . . . Terminal Hacks 13 | . 7 6 Record 3 | . . 3 Robot Analysis 2 | . 2 . Prototype ID Bank 1 | . 1 . Open Door 1 | . . 1 Terminal Index 1 | . 1 . Recall Investigation 2 | . 2 . Zone Layout 1 | . 1 . Proto ID Catalog 1 | . . 1 Release Object 1 | . . 1 Fabricator Hacks . | . . . Repair Station Hacks . | . . . Recycling Unit Hacks 1 | . 1 . Report Inventory 1 | . 1 . Scanalyzer . | . . . Garrison Access Hacks . | . . . Unauthorized Hacks 6 | . 6 . Terminals 6 | . 6 . Botnet 1 | . 1 . Skim 5 | . 5 . Fabricators . | . . . Repair Stations . | . . . Recycling Units . | . . . Scanalyzers . | . . . Garrison Access . | . . . Data Cores Recovered 1 | . 1 . Used . | . . . Hacking Detections 8 | . 8 . Full Trace Events . | . . . Feedback Events . | . . . Feedback Blocked . | . . . Robot Schematics Acquired . | . . . Robots Built . | . . . Authchips . | . . . Time . | . . . Total Robot Build Rating . | . . . Part Schematics Acquired . | . . . Parts Built . | . . . Authchips . | . . . Time . | . . . Total Part Build Rating . | . . . Parts Repaired . | . . . Time . | . . . Parts Recycled . | . . . Recycled Matter . | . . . Retrieved Matter . | . . . Retrieved Components . | . . . Parts Scanalyzed . | . . . Part Schematics Acquired . | . . . Parts Damaged . | . . . Bothacking | -11 -10 -10 ------------ Run | Yrd Mat Sub Used RIF Installer . | . . . Robots Hacked . | . . . Non-combat . | . . . Combat . | . . . Robot Hacks Applied . | . . . Relay Couplers Released . | . . . Fabnet Peak Effective % . | . . . Robots Rewired . | . . . Allies Hacked . | . . . Hacks Repelled . | . . . Allies | -11 -10 -10 -------- Run | Yrd Mat Sub Total Allies . | . . . Largest Group . | . . . Highest-Rated Group . | . . . Highest-Rated Ally . | . . . Total Orders . | . . . Ally Attacks . | . . . Total Damage . | . . . Kills . | . . . Allies Corrupted . | . . . Allies Melted . | . . . Intel | -11 -10 -10 ------- Run | Yrd Mat Sub Active Infowar (turns) 4 | . . 4 Terrain 4 | . . 4 Robot Analysis Total 2 | . 2 . Derelict Logs Recovered 2 | . . 2 Drone Launches . | . . . Drone Recoveries . | . . . Exploration | -11 -10 -10 ------------- Run | Yrd Mat Sub Turns Passed 5539 | 61 1207 4271 Spaces Moved 2883 | 46 640 2197 Core 23 | 2 . 21 Treads . | . . . Legs 634 | . . 634 Wheels 2226 | 44 640 1542 Hover . | . . . Flight . | . . . Fastest Speed 50 | 50 100 100 Average Speed 165 | 97 125 178 Slowest Speed 3800 | 100 165 3800 Overloaded Moves . | . . . Propulsion Burnouts . | . . . Robots Hopped . | . . . Potential Cave-ins 1 | . . 1 Cave-ins Triggered . | . . . Exploration Rate (%) 63 | 3 97 89 Regions Visited 2 Branch Regions 1 Pre-discovered Areas 3 | . . 3 Known Exits Taken . | . . . Unknown Exits Taken 2 | 1 1 . Scrap Searched 15 | . . 15 Spaces Dug 6 | . . 6 Terrain Destroyed 84 | . 25 59 Melee . | . . . Projectile 23 | . . 23 AOE 61 | . 25 36 Terrain Rammed . | . . . Walls Destroyed . | . . . Machines Disabled . | . . . Actions | -11 -10 -10 --------- Run | Yrd Mat Sub Total 3410 | 57 951 2402 Wait 288 | . 246 42 Move 2881 | 45 639 2197 Hop . | . . . Pick Up 25 | 5 4 16 Fast Attach 21 | 6 3 12 Attach 6 | . 4 2 Detach 5 | . 1 4 Swap 7 | . 4 3 Drop 23 | . 4 19 Fire 147 | 1 46 100 Melee . | . . . Ram . | . . . Kick . | . . . Crush . | . . . Escape Stasis . | . . . Rewire . | . . . Trap . | . . . Miscellaneous 7 | . . 7 Route ------- -11/Scrapyard -10/Materials (discovered 6 exits: [*Mat x3] / [*Min x2] / *Sub) -10/Subcaves (discovered 3 exits: *Mat x2 / Rec) History --------- Turn | Location | Event 31 | -11/Scrapyard | Discovered new exit (range 16) 62 | -11/Scrapyard | Entered Materials 198 | -10/Materials | Discovered new exit (range 11) 305 | -10/Materials | Build established: Mutant 493 | -10/Materials | Discovered new exit (range 16) 583 | -10/Materials | Discovered new exit (range 13) 677 | -10/Materials | Learned Storage trap positions 747 | -10/Materials | Learned 2 Storage zone layouts 769 | -10/Materials | Discovered new exit (range 8) 805 | -10/Materials | Learned location of 1 exit from Recycling 851 | -10/Materials | Learned 4 Subcaves zone layouts 889 | -10/Materials | Learned location of 1 exit from Storage 906 | -10/Materials | Discovered new exit (range 7) 937 | -10/Materials | Learned 4 Subcaves zone layouts 969 | -10/Materials | Learned 2 Mines zone layouts 1012 | -10/Materials | Learned Storage security intel 1250 | -10/Materials | Discovered new exit (range 8) 1269 | -10/Materials | Entered Subcaves 1270 | -10/Subcaves | Approached by a straggling Scientist 1270 | -10/Subcaves | Identified exit to Materials 1270 | -10/Subcaves | Identified exit to Recycling 1330 | -10/Subcaves | Visited 4L-MR0's lab 1372 | -10/Subcaves | Shifting Twisted Machinery released Sub. Power Source 1724 | -10/Subcaves | Disturbed a concealed Subdweller 1794 | -10/Subcaves | Visited Clippyterm 1797 | -10/Subcaves | Learned location of Extension (-5) 1869 | -10/Subcaves | A swath of the cavern ceiling suddenly collapsed 1876 | -10/Subcaves | Build established: Scavenger-Mutant 2019 | -10/Subcaves | Learned location of Recycling (-8) 2191 | -10/Subcaves | Shifting Twisted Machinery released Ripper 2320 | -10/Subcaves | Ambushed by Subdweller buried in earth 2325 | -10/Subcaves | Core integrity fell below 50% 2640 | -10/Subcaves | Build established: Hauler-Mutant 3227 | -10/Subcaves | Disturbed a concealed Subdweller 3258 | -10/Subcaves | Learned location of Zion (-7) 3271 | -10/Subcaves | Build established: Subdweller-Mutant 3340 | -10/Subcaves | Shifting Twisted Machinery released Mak. Power Source 3369 | -10/Subcaves | Shifting Twisted Machinery released Shrapnel Trap 3397 | -10/Subcaves | Shifting Twisted Machinery released Sub. Laser 3536 | -10/Subcaves | Core integrity fell below 20% 3603 | -10/Subcaves | Shifting Twisted Machinery released Sub. Monowheel 3639 | -10/Subcaves | A swath of the cavern ceiling suddenly collapsed 3817 | -10/Subcaves | Found SUBCON Basin 3857 | -10/Subcaves | Build established: Hauler-Mutant 4180 | -10/Subcaves | Found Flightbrick 5540 | -10/Subcaves | Destroyed by Autobeam Turret with Autobeam Last Messages --------------- 04328_ Sub. Monowheel shoots sparks and powers down. 04344_ Subatomizers dissect the Sub. Machine Gun. 04366_ Subatomizers dissect the Sub. Machine Gun, destroying it. 04376_ Subatomizers dissect the Sub. Optics. 04427_ Sub. Monowheel shoots sparks and powers down. 04911_ Subatomizers dissect the Ion Engine. 04923_ Dropped Broken Sub. Monowheel. 04923_ Acquired Com. Wheel. 04931_ Dropped Broken Sub. Monowheel. 04932_ Acquired Com. Wheel. 04937_ Subatomizers dissect the Ion Engine. 05007_ Acquired 51 matter. 05060_ Acquired 9 matter. 05068_ Acquired Scrap Shield. 05073_ Acquired Piercing Trap. 05079_ Acquired Sub. Beam Cannon. 05082_ Acquired Piercing Trap. 05087_ Acquired Sub. Shrapnel Launcher. 05098_ Acquired Phase Shifter. 05539_ S-10 Pest destroyed. Map ----- +----------------------------------------------------+ | ??????# &&& #????????????????# #?????????? | | ??????##"[###?????????????#### #?????????? | | #?????### #?????########?# ##?????????? | | #?????# #&#####?## ### *% #??????????? | | #??#### " " # #?# ## % ##??????????? | | #### # #?# #??????????? | | ## ### ##??????????? | | ## ## ##???????????? | | ## #????????????? | | #### ### #????????????? | | ##?# #?# ####????????????? | | ### #?# #### ## ###???????????????? | | ### ##?##### #" #???????????????? | | ##????## ####???????????????? | | ##????## #??????????????????? | | ##????# #????####??????????? | | ########## ##??## #??????????? | | ## ##???## #### #??????##### | | # ## ###??###"## ##???####""" | | #### # ##???##" #????##! % | | ## ## ## ##### #????#"!*& | | #### ########## ## #???##" " | | #?# #??##???## ### ##???#! =[ # | | #?# #### ##### ##?# #"#???#"!=%%% # | | ##?## ### #### ####???# %#%*# | | #??###??# @ ## #??????# [%%% # | | #???????#### #??????# | # | | ##????##????## # ##??????#" | | #??### ##???## #### ##???????## ^"" | | ##?## #?#### #??## ;;#???????#" """ | | #??# # ### ## #???# ;#??????## " | | #??# ##??## #??????#### """ | | #### ## # #???##; ????????##### | | ### ##########?????;; #???????????? | | ## #???## ##??????# [ #???????????? | | ## ##### #???????# %= ????????????? | | ## #??????##; * ;#???????????? | | ## #??????#" "#???????????? | | ## #??????# #???????????? | | ### ### ## #??????# #???????????? | | #?# ## ##### #??????#" "#???????????? | | ### ##???###??????#" " " "#???????????? | | #?????????????#"""" """"#???????????? | | ##?????????????#####>#####???????????? | | ## ##??????????????????###???????????????? | | #### ##?????????????????????????????????????? | | ###### #####??????????????????????????????????? | | ##?## ## ##?????????????????????????????????? | | ##?# ## #?????????????????????????????????? | | ### #### #?????????????????????????????????? | +----------------------------------------------------+ Best States ------------- Heat Dissipation 25 Energy Generation 19 Energy Capacity 315 Matter Stores 300 Matter Capacity 300 Sight Range 16 Terrain Scan Range 16 Terrain Scan Density 10 Armor Coverage 800 Evasion (%) 55 Item Schematics ----------------- None Robot Schematics ------------------ None Fabricated ------------ Nothing Repaired ---------- Nothing Alien Tech Used ----------------- None Achievements -------------- None Challenges ------------ None Game ------ Seed GammaRiotTube Manual? 0 Play Time 00:32:54 Cumulative 303.0 hours Start 2025.05.24 @ 17:49:21 End 2025.05.24 @ 18:20:09 Sessions 1 Manual Loads 0 Difficulty Rogue Special Mode None Game No. 146 Rogue 103 Adventurer 43 Explorer 0 Win Type - Total 6 Types 4/0/1/0/0/0/0/1/0/0 Lore% 82 Gallery% 71 Achievement% 65 Wizard Run 0 Options --------- Layout 0 ASCII 0 Keyboard 0 Movement Numpad Keybinds 0 Fullscreen 1 Font 24/Smallcaps Map View 76x50 Zoom Use 0% Tactical HUD 1 Map Filters NONE Filters NONE Steam 1 RUN: 343f192d-b431-4e4d-8eca-d2bb0764c36e